fUST/lending_fUST_20251021
["ID","MTS","AMOUNT","RATE_DAILY","PERIOD"]
[391926118,1760997875053,150.0,0.00023513,2]
[391926129,1760997955833,150.0,0.00020561,2]
[391926130,1760997956279,150.0,0.00021541,2]
[391926131,1760997956732,192.97,0.0002252,2]
[391926132,1760997957181,257.29,0.00023499,2]
[391926133,1760997960244,150.0,0.00023769,30]
[391926136,1760998034180,150.0,0.0002054,2]
[391926137,1760998034713,150.0,0.00021518,2]
[391926138,1760998035139,158.59,0.00022497,2]
[391926139,1760998035571,211.46,0.00023475,2]
[391926140,1760998038783,150.0,0.00023495,30]
[391926141,1760998080051,235.0,0.00015984,2]
[391926142,1760998080551,235.0,0.00015984,5]
[391926143,1760998080834,234.98,0.00015984,2]
[391926144,1760998112375,150.0,0.00020862,2]
[391926145,1760998113073,150.0,0.00021856,2]
[391926146,1760998113273,150.0,0.00022849,2]
[391926147,1760998114251,169.71,0.00023843,2]
[391926148,1760998117350,150.0,0.0002366,30]
[391926149,1760998188132,150.0,0.0002075,2]
[391926150,1760998188523,150.0,0.00021738,2]
[391926151,1760998188983,150.0,0.00022727,2]
[391926152,1760998189496,150.0,0.00023715,2]
[391926153,1760998192710,150.0,0.00023607,30]
[391926154,1760998216512,417.15472785,0.00024075,2]
[391926197,1760998232391,-201.64292516,0.000246,2]
[391926199,1760998232401,-237.62415202,0.000246,2]
[391926201,1760998232411,-163.16,0.00024703,2]
[391926203,1760998232420,-97.88079601,0.00024787,30]
[391926246,1760998238286,-52.11920399,0.00024787,30]
[391926248,1760998238296,-627.27537848,0.00024999,2]
[391926250,1760998238305,-500.0,0.00024999,2]
[391926252,1760998238314,-273.26777483,0.000252,2]
[391926254,1760998238323,-412.26436485,0.00025642,4]
[391926255,1760998238333,-195.79,0.00025691,2]
[391926257,1760998238343,-308.91139763,0.000258,2]
[391926259,1760998238352,-150.0,0.00025914,30]
[391926261,1760998238361,-500.0,0.00025926,2]
[391926262,1760998238371,-500.0,0.00025973,2]
[391926264,1760998238380,-500.0,0.00025973,2]
[391926266,1760998238390,-500.0,0.00025973,2]
[391926268,1760998238399,-500.0,0.00025973,2]
[391926269,1760998238409,-500.0,0.00025973,2]
[391926271,1760998238418,-500.0,0.00025973,2]
[391926272,1760998238427,-500.0,0.00025973,2]
[391926274,1760998238437,-500.0,0.00025973,2]
[391926276,1760998238453,-402.9601108,0.0002598,10]
[391926278,1760998238467,-6083.33,0.0002598,10]
[391926279,1760998238477,-300.0,0.00025989,2]
[391926280,1760998238486,-500.0,0.00025989,2]
[391926281,1760998238496,-500.0,0.00025989,2]
[391926282,1760998238506,-500.0,0.00025989,2]
[391926283,1760998238516,-500.0,0.00025989,2]
[391926284,1760998238526,-500.0,0.00025989,2]
[391926285,1760998238535,-500.0,0.00025989,2]
[391926286,1760998238545,-500.0,0.00025989,2]
[391926287,1760998238555,-500.0,0.00025989,2]
[391926288,1760998238566,-500.0,0.00025989,2]
[391926289,1760998238576,-500.0,0.00025989,2]
[391926290,1760998238586,-500.0,0.00025989,2]
[391926291,1760998238597,-267.3428605,0.00025989,2]
[391926292,1760998238607,-500.0,0.00025989,2]
[391926293,1760998238617,-159.91944295,0.00025989,2]
[391926294,1760998238626,-449.46850233,0.00025989,2]
[391926295,1760998238636,-500.0,0.00025989,2]
[391926296,1760998238646,-508.19401681,0.00025989,2]
[391926297,1760998238656,-386.45282638,0.00025989,2]
[391926298,1760998238666,-500.0,0.00025989,2]
[391926299,1760998238676,-400.77425864,0.00025989,2]
[391926300,1760998238685,-194.79187687,0.00025989,2]
[391926301,1760998238695,-100000.0,0.0002599,2]
[391926302,1760998238705,-495.0012452,0.00026243,2]
[391926303,1760998238715,-201.64292515,0.00026343,2]
[391926304,1760998238725,-1654.77032731,0.00026353,4]
[391926305,1760998238735,-1316.42671724,0.00026353,4]
[391926306,1760998238745,-344.55502044,0.000264,2]
[391926307,1760998238754,-5632.12668557,0.00026436,2]
[391926308,1760998238763,-1644.99,0.00026446,2]
[391926309,1760998238773,-6275.00593715,0.0002648,2]
[391926310,1760998238783,-1000.0,0.00026521,2]
[391926311,1760998238793,-1000.0,0.00026521,2]
[391926312,1760998238802,-1000.0,0.00026521,2]
[391926313,1760998238812,-1000.0,0.00026521,2]
[391926314,1760998238822,-504.07427445,0.00026521,2]
[391926315,1760998238831,-1000.0,0.00026521,2]
[391926316,1760998238840,-500.0,0.00026526,2]
[391926317,1760998238850,-285.89096783,0.00026536,2]
[391926318,1760998238859,-382.4269672,0.00026536,2]
[391926319,1760998238869,-500.0,0.00026536,3]
[391926320,1760998238879,-1086.79,0.00026536,3]
[391926321,1760998238888,-543.39,0.00026536,3]
[391926322,1760998238898,-271.7,0.00026536,3]
[391926323,1760998238908,-815.12,0.00026536,3]
[391926324,1760998238918,-326429.684135,0.00026537,2]
[391926325,1760998238927,-18818.8115969,0.00026537,2]
[391926326,1760998238937,-500.0,0.00026546,2]
[391926327,1760998238947,-500.0,0.00026546,5]
[391926328,1760998238956,-3136.46859949,0.00026563,2]
[391926329,1760998238967,-199.0,0.00026564,7]
[391926330,1760998238977,-25091.7487959,0.00026566,2]
[391926331,1760998238987,-500.0,0.00026573,2]
[391926332,1760998238996,-500.0,0.00026573,2]
[391926333,1760998239006,-500.0,0.00026573,2]
[391926334,1760998239015,-500.0,0.00026573,2]
[391926335,1760998239025,-500.0,0.00026573,2]
[391926336,1760998239035,-500.0,0.00026573,2]
[391926337,1760998239045,-500.0,0.00026573,2]
[391926338,1760998239055,-500.0,0.00026573,2]
[391926339,1760998239068,-500.0,0.00026573,2]
[391926340,1760998239079,-500.0,0.00026573,2]
[391926341,1760998239089,-500.0,0.00026573,2]
[391926342,1760998239098,-500.0,0.00026573,2]
[391926343,1760998239108,-500.0,0.00026573,2]
[391926344,1760998239119,-500.0,0.00026573,2]
[391926345,1760998239129,-214.65975848,0.00026573,2]
[391926346,1760998239139,-500.0,0.00026573,2]
[391926347,1760998239149,-500.0,0.00026573,2]
[391926348,1760998239159,-597.40411846,0.00026573,2]
[391926349,1760998239170,-500.0,0.00026573,2]
[391926350,1760998239179,-500.0,0.00026573,2]
[391926351,1760998239190,-500.0,0.00026573,2]
[391926352,1760998239202,-170.05958853,0.00026573,2]
[391926353,1760998239212,-158.45552811,0.00026573,2]
[391926354,1760998239222,-160.05607692,0.00026573,2]
[391926355,1760998239232,-500.0,0.00026573,2]
[391926356,1760998239245,-159.82220298,0.00026573,2]
[391926357,1760998239255,-500.0,0.00026573,2]
[391926358,1760998239265,-500.0,0.00026573,2]
[391926359,1760998239274,-500.0,0.00026573,2]
[391926360,1760998239283,-500.0,0.00026573,2]
[391926361,1760998239294,-500.0,0.00026573,2]
[391926362,1760998239304,-500.0,0.00026573,2]
[391926363,1760998239314,-500.0,0.00026573,2]
[391926364,1760998239323,-500.0,0.00026573,2]
[391926365,1760998239332,-500.0,0.00026573,2]
[391926366,1760998239342,-1430.0,0.00026573,2]
[391926367,1760998239351,-151.0,0.00026573,2]
[391926368,1760998239361,-500.0,0.00026573,2]
[391926369,1760998239370,-151.0,0.00026573,2]
[391926370,1760998239379,-151.0,0.00026573,2]
[391926371,1760998239389,-151.0,0.00026573,2]
[391926372,1760998239398,-151.0,0.00026573,2]
[391926373,1760998239407,-500.0,0.00026573,2]
[391926374,1760998239417,-500.0,0.00026573,2]
[391926375,1760998239427,-500.0,0.00026573,2]
[391926376,1760998239436,-500.0,0.00026573,2]
[391926377,1760998239445,-151.0,0.00026573,2]
[391926378,1760998239455,-151.0,0.00026573,2]
[391926379,1760998239465,-500.0,0.00026573,2]
[391926380,1760998239475,-151.0,0.00026573,2]
[391926381,1760998239484,-500.0,0.00026573,2]
[391926382,1760998239493,-200.0,0.00026573,10]
[391926383,1760998239503,-200.0,0.00026573,10]
[391926384,1760998239515,-200.0,0.00026573,10]
[391926385,1760998239525,-200.0,0.00026573,10]
[391926386,1760998239535,-200.0,0.00026573,10]
[391926387,1760998239544,-500.0,0.00026573,2]
[391926388,1760998239553,-500.0,0.00026573,2]
[391926389,1760998239563,-305.36256827,0.00026573,2]
[391926390,1760998239573,-200.0,0.00026573,10]
[391926391,1760998239582,-200.0,0.00026573,10]
[391926392,1760998239592,-200.0,0.00026573,10]
[391926393,1760998239602,-200.0,0.00026573,10]
[391926394,1760998239611,-200.0,0.00026573,10]
[391926395,1760998239621,-200.0,0.00026573,10]
[391926396,1760998239632,-200.0,0.00026573,10]
[391926398,1760998239916,-500.0,0.00026573,2]
[391926399,1760998239925,-200.0,0.00026573,10]
[391926400,1760998239936,-200.0,0.00026573,10]
[391926401,1760998239946,-200.0,0.00026573,10]
[391926402,1760998239956,-200.0,0.00026573,10]
[391926403,1760998239965,-200.0,0.00026573,10]
[391926404,1760998239975,-200.0,0.00026573,10]
[391926405,1760998239985,-200.0,0.00026573,10]
[391926406,1760998239994,-200.0,0.00026573,10]
[391926407,1760998240004,-200.0,0.00026573,10]
[391926408,1760998240013,-200.0,0.00026573,10]
[391926409,1760998240022,-200.0,0.00026573,10]
[391926410,1760998240032,-200.0,0.00026573,10]
[391926411,1760998240042,-200.0,0.00026573,10]
[391926412,1760998240052,-200.0,0.00026573,10]
[391926413,1760998240062,-200.0,0.00026573,10]
[391926415,1760998240071,-151.0,0.00026576,10]
[391926416,1760998240081,-151.0,0.00026576,10]
[391926417,1760998240091,-370000.0,0.00026576,2]
[391926418,1760998240100,-2163.0,0.0002658,2]
[391926419,1760998240110,-520.0,0.00026586,2]
[391926420,1760998240119,-20675.14,0.000266,7]
[391926421,1760998240129,-402.9601108,0.000266,7]
[391926422,1760998240138,-4204.0,0.00026612,2]
[391926423,1760998240147,-160.0,0.00026613,2]
[391926425,1760998240156,-1430.0,0.00026628,2]
[391926426,1760998240165,-151.0,0.00026628,2]
[391926427,1760998240174,-500.0,0.00026628,2]
[391926428,1760998240184,-151.0,0.00026628,2]
[391926429,1760998240193,-151.0,0.00026628,2]
[391926430,1760998240202,-500.0,0.00026628,2]
[391926431,1760998240211,-500.0,0.00026628,2]
[391926432,1760998240221,-500.0,0.00026628,2]
[391926433,1760998240230,-500.0,0.00026628,2]
[391926434,1760998240239,-151.0,0.00026628,2]
[391926435,1760998240249,-151.0,0.00026628,2]
[391926436,1760998240263,-500.0,0.00026628,2]
[391926437,1760998240274,-151.59120751,0.00026628,2]
[391926438,1760998240283,-500.0,0.00026628,2]
[391926439,1760998240293,-500.0,0.00026628,2]
[391926440,1760998240302,-151.0,0.00026631,10]
[391926441,1760998240312,-151.0,0.00026631,10]
[391926442,1760998240321,-228.42,0.00026679,2]
[391926443,1760998240340,-1430.0,0.00026683,2]
[391926444,1760998240352,-151.0,0.00026683,2]
[391926445,1760998240363,-500.0,0.00026683,2]
[391926447,1760998240372,-151.0,0.00026683,2]
[391926448,1760998240382,-500.0,0.00026683,2]
[391926449,1760998240392,-500.0,0.00026683,2]
[391926450,1760998240402,-500.0,0.00026683,2]
[391926451,1760998240414,-152.50400688,0.00026683,2]
[391926453,1760998240424,-151.0,0.00026683,2]
[391926454,1760998240433,-151.0,0.00026683,2]
[391926455,1760998240443,-500.0,0.00026683,2]
[391926456,1760998240453,-500.0,0.00026683,2]
[391926457,1760998240463,-500.0,0.00026683,2]
[391926458,1760998240474,-500.0,0.00026683,2]
[391926459,1760998240484,-151.56260228,0.00026686,10]
[391926460,1760998240494,-151.0,0.00026686,10]
[391926461,1760998240505,-1430.0,0.00026737,2]
[391926462,1760998240514,-151.0,0.00026737,2]
[391926463,1760998240526,-500.0,0.00026737,2]
[391926464,1760998240536,-151.0,0.00026737,2]
[391926465,1760998240546,-500.0,0.00026737,2]
[391926466,1760998240556,-151.0,0.00026737,2]
[391926467,1760998240566,-151.0,0.00026737,2]
[391926468,1760998240577,-500.0,0.00026737,2]
[391926469,1760998240587,-500.0,0.00026737,2]
[391926470,1760998240597,-500.0,0.00026737,2]
[391926471,1760998240608,-281.17174685,0.0002674,10]
[391926472,1760998240618,-287.35051431,0.00026749,2]
[391926473,1760998240627,-500.0,0.00026792,2]
[391926474,1760998240637,-1430.0,0.00026792,2]
[391926475,1760998240647,-151.0,0.00026792,2]
[391926476,1760998240657,-500.0,0.00026792,2]
[391926477,1760998240667,-200.51114859,0.00026792,2]
[391926478,1760998240676,-294.96151405,0.00026792,2]
[391926479,1760998240686,-151.0,0.00026792,2]
[391926480,1760998240696,-151.0,0.00026792,2]
[391926481,1760998240706,-154.12276168,0.00026792,2]
[391926482,1760998240715,-152.89452512,0.00026792,2]
[391926483,1760998240725,-500.0,0.00026792,2]
[391926484,1760998240735,-500.0,0.0002681,3]
[391926485,1760998240745,-500.0,0.0002682,5]
[391926486,1760998240755,-500.0,0.00026827,2]
[391926487,1760998240764,-500.0,0.00026827,2]
[391926488,1760998240774,-199.0,0.00026838,8]
[391926489,1760998240783,-500.0,0.00026846,2]
[391926490,1760998240793,-1430.0,0.00026847,2]
[391926491,1760998240803,-245.0,0.00026847,2]
[391926492,1760998240812,-500.0,0.00026847,2]
[391926493,1760998240822,-199.88629968,0.00026847,2]
[391926494,1760998240831,-152.27320854,0.00026847,2]
[391926495,1760998240841,-500.0,0.00026847,2]
[391926496,1760998240851,-3136.46859949,0.00026869,2]
[391926497,1760998240860,-500.0,0.00026879,2]
[391926498,1760998240869,-500.0,0.00026879,2]
[391926499,1760998240879,-500.0,0.00026879,2]
[391926500,1760998240889,-500.0,0.00026879,2]
[391926501,1760998240898,-500.0,0.00026879,2]
[391926502,1760998240908,-500.0,0.00026879,2]
[391926503,1760998240918,-500.0,0.00026879,2]
[391926504,1760998240928,-500.0,0.00026879,2]
[391926505,1760998240937,-500.0,0.00026879,2]
[391926506,1760998240947,-500.0,0.00026879,2]
[391926507,1760998240957,-500.0,0.00026879,2]
[391926508,1760998240967,-1430.0,0.00026902,2]
[391926509,1760998240977,-500.0,0.00026902,2]
[391926510,1760998240986,-500.0,0.00026902,2]
[391926511,1760998240996,-1430.0,0.00026957,2]
[391926512,1760998241005,-500.0,0.00026957,2]
[391926513,1760998241015,-300.62932651,0.00026957,2]
[391926514,1760998241025,-6272.93719898,0.0002698,2]
[391926515,1760998241035,-402.9601108,0.00027,3]
[391926516,1760998241044,-336.625724,0.00027,2]
[391926517,1760998241054,-229.459681,0.00027,2]
[391926518,1760998241064,-22653.30623649,0.00027,3]
[391926519,1760998241074,-380.19864324,0.00027,2]
[391926520,1760998241083,-1430.0,0.00027011,2]
[391926521,1760998241093,-500.0,0.00027011,2]
[391926522,1760998241102,-1430.0,0.00027066,2]
[391926523,1760998241112,-500.0,0.00027066,2]
[391926524,1760998241122,-628.63569683,0.00027068,2]
[391926525,1760998241132,-335.9880288,0.00027068,2]
[391926526,1760998241143,-1114.73920808,0.00027068,2]
[391926527,1760998241154,-1500.0,0.00027068,2]
[391926528,1760998241164,-1500.0,0.00027068,2]
[391926529,1760998241174,-1500.0,0.00027068,2]
[391926530,1760998241183,-643.67247894,0.00027084,3]
[391926531,1760998241192,-500.0,0.00027094,5]
[391926532,1760998241202,-2072.0,0.00027095,2]
[391926533,1760998241211,-300.0,0.00027107,30]
[391926534,1760998241221,-300.0,0.00027107,30]
[391926535,1760998241231,-300.0,0.00027107,30]
[391926536,1760998241241,-300.0,0.00027107,30]
[391926537,1760998241251,-300.0,0.00027107,30]
[391926538,1760998241260,-300.0,0.00027107,30]
[391926539,1760998241270,-300.0,0.00027107,30]
[391926540,1760998241280,-300.0,0.00027107,30]
[391926541,1760998241293,-300.0,0.00027107,30]
[391926542,1760998241303,-300.0,0.00027107,30]
[391926543,1760998241312,-300.0,0.00027107,30]
[391926544,1760998241322,-300.0,0.00027107,30]
[391926545,1760998241331,-300.0,0.00027107,30]
[391926546,1760998241341,-300.0,0.00027107,30]
[391926547,1760998241351,-300.0,0.00027107,30]
[391926548,1760998241360,-600.0,0.00027107,30]
[391926549,1760998241370,-3136.46859949,0.00027111,2]
[391926550,1760998241379,-199.0,0.00027112,9]
[391926551,1760998241393,-500.48542525,0.00027115,2]
[391926552,1760998241404,-489.32530999,0.00027121,2]
[391926553,1760998241414,-591.8798605,0.00027121,2]
[391926554,1760998241424,-500.0,0.00027121,2]
[391926555,1760998241435,-685.21247534,0.00027121,2]
[391926556,1760998241445,-1000.0,0.00027121,2]
[391926557,1760998241455,-1000.26549386,0.00027121,2]
[391926558,1760998241465,-573.69105529,0.00027121,2]
[391926559,1760998241475,-497.80722254,0.00027121,2]
[391926560,1760998241485,-505.02184591,0.00027121,2]
[391926561,1760998241495,-1000.0,0.00027121,2]
[391926562,1760998241505,-1000.0,0.00027121,2]
[391926563,1760998241515,-1000.0,0.00027121,2]
[391926564,1760998241524,-1000.0,0.00027121,2]
[391926565,1760998241534,-472.36268032,0.00027121,2]
[391926566,1760998241544,-1000.0,0.00027121,2]
[391926567,1760998241554,-520.34331837,0.00027121,2]
[391926568,1760998241564,-500.0,0.00027121,2]
[391926569,1760998241573,-510.21036092,0.00027121,2]
[391926570,1760998241583,-1000.0,0.00027121,2]
[391926571,1760998241593,-500.0,0.00027121,2]
[391926572,1760998241603,-500.0,0.00027121,2]
[391926573,1760998241613,-1000.0,0.00027121,2]
[391926574,1760998241622,-1000.0,0.00027121,2]
[391926575,1760998241632,-1430.0,0.00027121,2]
[391926576,1760998241642,-500.0,0.00027121,2]
[391926577,1760998241651,-520.0,0.00027142,2]
[391926578,1760998241661,-260.0,0.00027161,2]
[391926579,1760998241670,-1430.0,0.00027176,2]
[391926580,1760998241680,-324.0,0.00027176,2]
[391926581,1760998241690,-160.0,0.00027191,2]
[391926582,1760998241700,-402.9601108,0.00027191,2]
[391926583,1760998241709,-160.0,0.00027191,2]
[391926584,1760998241719,-292.404,0.00027196,2]
[391926585,1760998241728,-150.0,0.00027196,2]
[391926586,1760998241738,-999.443,0.00027196,2]
[391926587,1760998241747,-632.0,0.00027196,2]
[391926588,1760998241757,-1430.0,0.00027231,2]
[391926589,1760998241767,-520.0,0.00027231,2]
[391926590,1760998241776,-520.0,0.00027237,2]
[391926591,1760998241786,-520.0,0.00027241,2]
[391926592,1760998241796,-520.0,0.00027277,2]
[391926593,1760998241806,-1430.0,0.00027285,2]
[391926594,1760998241815,-520.0,0.0002733,2]
[391926595,1760998241825,-1430.0,0.0002734,2]
[391926596,1760998241835,-500.0,0.00027368,5]
[391926597,1760998241844,-199.0,0.00027386,10]
[391926598,1760998241854,-1430.0,0.00027395,2]
[391926599,1760998241863,-1430.0,0.0002745,2]
[391926600,1760998241874,-517.23092577,0.00027487,2]
[391926601,1760998241884,-1430.0,0.00027505,2]
[391926602,1760998241893,-2072.0,0.00027518,7]
[391926603,1760998241903,-1430.0,0.00027559,2]
[391926604,1760998241913,-3136.46859949,0.0002759,2]
[391926605,1760998241924,-3458.74,0.000276,2]
[391926606,1760998241934,-415.84226604,0.000276,2]
[391926607,1760998241947,-1430.0,0.00027614,2]
[391926608,1760998241957,-1024.87285329,0.00027616,5]
[391926609,1760998241970,-2000.0,0.00027616,5]
[391926610,1760998241980,-1507.1927802,0.00027616,5]
[391926611,1760998241990,-2070.0,0.00027619,2]
[391926612,1760998241999,-500.0,0.00027642,15]
[391926613,1760998242009,-199.0,0.0002766,11]
[391926614,1760998242019,-261.05,0.00027667,2]
[391926615,1760998242030,-1500.0,0.00027668,5]
[391926616,1760998242040,-1500.0,0.00027668,5]
[391926617,1760998242050,-1500.0,0.00027668,5]
[391926618,1760998242059,-1000.0,0.00027668,5]
[391926619,1760998242069,-1500.0,0.00027668,5]
[391926620,1760998242079,-1500.0,0.00027668,5]
[391926621,1760998242088,-290.63311626,0.00027668,5]
[391926622,1760998242098,-1430.0,0.00027669,2]
[391926623,1760998242107,-502.79717437,0.00027673,5]
[391926624,1760998242117,-500.0,0.00027673,5]
[391926625,1760998242127,-500.0,0.00027673,5]
[391926626,1760998242136,-500.0,0.00027673,5]
[391926627,1760998242146,-174.86420049,0.00027673,5]
[391926628,1760998242155,-160.09153937,0.00027673,5]
[391926629,1760998242164,-158.45740273,0.00027673,2]
[391926630,1760998242174,-500.0,0.00027673,5]
[391926631,1760998242183,-158.45551666,0.00027673,5]
[391926632,1760998242192,-360.0,0.00027709,2]
[391926633,1760998242201,-1430.0,0.00027724,2]
[391926634,1760998242211,-520.0,0.0002773,7]
[391926635,1760998242220,-1430.0,0.00027778,2]
[391926636,1760998242230,-1131.54425429,0.00027801,2]
[391926637,1760998242240,-495.00124519,0.00027829,2]
[391926638,1760998242252,-1453.79249431,0.00027833,2]
[391926639,1760998242262,-900.87376546,0.00027852,2]
[391926640,1760998242271,-520.0,0.00027858,2]
[391926641,1760998242281,-17705.0,0.0002787,7]
[391926642,1760998242291,-2173.58,0.00027906,3]
[391926643,1760998242300,-1086.78,0.00027906,3]
[391926644,1760998242310,-543.4,0.00027906,3]
[391926645,1760998242319,-500.0,0.00027916,15]
[391926646,1760998242329,-500.0,0.00027924,2]
[391926647,1760998242339,-570.82366199,0.00027924,5]
[391926648,1760998242348,-500.0,0.00027924,5]
[391926649,1760998242358,-500.0,0.00027924,5]
[391926650,1760998242367,-500.0,0.00027924,5]
[391926651,1760998242377,-503.62179262,0.00027924,5]
[391926652,1760998242386,-199.0,0.00027934,12]
[391926653,1760998242395,-495.827,0.00027935,18]
[391926654,1760998242405,-2070.0,0.00027981,7]
[391926655,1760998242414,-520.0,0.00028056,2]
[391926656,1760998242423,-153.0,0.00028063,2]
[391926657,1760998242432,-153.0,0.00028063,2]
[391926658,1760998242442,-153.0,0.00028063,2]
[391926659,1760998242451,-153.0,0.00028063,2]
[391926660,1760998242460,-153.0,0.00028063,2]
[391926661,1760998242469,-153.0,0.00028063,2]
[391926662,1760998242479,-153.0,0.00028063,2]
[391926663,1760998242488,-153.0,0.00028063,2]
[391926664,1760998242499,-153.0,0.00028063,2]
[391926665,1760998242508,-153.0,0.00028063,2]
[391926666,1760998242518,-153.0,0.00028063,2]
[391926667,1760998242527,-153.0,0.00028063,2]
[391926668,1760998242537,-520.0,0.00028063,2]
[391926669,1760998242546,-420.0,0.00028126,2]
[391926670,1760998242555,-153.0,0.00028136,2]
[391926671,1760998242565,-153.0,0.00028136,2]
[391926672,1760998242575,-153.0,0.00028136,2]
[391926673,1760998242585,-153.0,0.00028136,2]
[391926674,1760998242595,-2027.64625486,0.00028164,5]
[391926675,1760998242606,-500.0,0.0002819,15]
[391926676,1760998242615,-451.48588885,0.000282,2]
[391926677,1760998242626,-199.0,0.00028208,13]
[391926678,1760998242635,-1001.31810643,0.00028216,5]
[391926679,1760998242646,-2000.0,0.00028216,5]
[391926680,1760998242655,-2000.0,0.00028216,5]
[391926681,1760998242665,-2000.0,0.00028216,5]
[391926682,1760998242674,-2000.0,0.00028216,5]
[391926683,1760998242683,-335.50537354,0.00028221,5]
[391926684,1760998242693,-1000.0,0.00028221,5]
[391926685,1760998242703,-1000.0,0.00028221,5]
[391926686,1760998242714,-290.67468229,0.00028221,5]
[391926687,1760998242723,-460.0,0.00028257,2]
[391926688,1760998242732,-6275.00593715,0.00028272,2]
[391926689,1760998242741,-918.60212416,0.0002844,2]
[391926690,1760998242751,-500.0,0.00028464,15]
[391926691,1760998242760,-1110.37696371,0.00028471,2]
[391926692,1760998242770,-502.13746908,0.00028471,5]
[391926693,1760998242780,-1000.0,0.00028471,5]
[391926694,1760998242791,-1014.52470429,0.00028471,5]
[391926695,1760998242802,-199.0,0.00028482,14]
[391926696,1760998242812,-2011.63422984,0.00028534,2]
[391926697,1760998242822,-331.0,0.00028548,29]
[391926698,1760998242831,-520.0,0.00028553,7]
[391926699,1760998242840,-1601.55336081,0.00028587,2]
[391926700,1760998242851,-520.0,0.00028611,2]
[391926701,1760998242860,-293.68,0.00028655,2]
[391926702,1760998242871,-2070.0,0.0002868,2]
[391926703,1760998242881,-520.0,0.00028737,2]
[391926704,1760998242890,-500.0,0.00028738,15]
[391926705,1760998242901,-199.0,0.00028756,15]
[391926706,1760998242910,-2500.0,0.00028764,5]
[391926707,1760998242919,-2000.0,0.00028764,5]
[391926708,1760998242929,-520.68978413,0.00028764,5]
[391926709,1760998242939,-2500.0,0.00028764,5]
[391926710,1760998242949,-1500.0,0.00028768,5]
[391926711,1760998242959,-1015.02448864,0.00028768,5]
[391926712,1760998242969,-487.12951165,0.000288,2]
[391926714,1760998242979,-560.0,0.00028805,2]
[391926715,1760998242988,-520.0,0.00028864,7]
[391926716,1760998242998,-2070.0,0.0002892,2]
[391926717,1760998243008,-179.69451932,0.00028954,2]
[391926718,1760998243017,-150.0,0.00028965,5]
[391926719,1760998243027,-520.0,0.00028978,2]
[391926720,1760998243038,-150.0,0.00028987,5]
[391926721,1760998243048,-150.0,0.00028987,5]
[391926723,1760998243057,-1059.32,0.00029,2]
[391926725,1760998243066,-500.0,0.00029012,15]
[391926726,1760998243076,-1500.0,0.00029019,5]
[391926727,1760998243085,-520.0,0.00029029,2]
[391926728,1760998243095,-199.0,0.0002903,16]
[391926729,1760998243104,-503.49569902,0.00029041,7]
[391926730,1760998243114,-520.0,0.00029074,2]
[391926731,1760998243125,-520.0,0.00029077,2]
[391926732,1760998243136,-2672.821039,0.0002913,2]
[391926733,1760998243145,-336.625724,0.0002913,2]
[391926734,1760998243155,-229.459681,0.0002913,2]
[391926735,1760998243166,-1059.32,0.00029174,2]
[391926736,1760998243175,-5000.0,0.00029212,2]
[391926737,1760998243185,-3140.03530565,0.00029267,2]
[391926738,1760998243197,-500.0,0.00029286,15]